[Event "IIFL Wealth  4th Mumbai Junior U-13"]
[Site "Mumbai"]
[Date "2018.12.31"]
[Round "2"]
[White "Agarwal Mukund H"]
[Black "Ayush Sharma"]
[Result "0-1"]
[ECO "C02"]
[WhiteElo "1375"]
[BlackElo "1778"]
[Annotator "NA RC"]
[PlyCount "98"]
[EventDate "2018.12.30"]
[EventType "swiss"]
[EventCountry "IND"]
[SourceTitle "playchess.com"]
[Source "ChessBase"]
[SourceQuality "1"]
[TimeControl "40/5400+30:1800+30"]

1. e4 {[%emt 0:04:08]} e6 {[%emt 0:00:00]} 2. d4 {[%emt 0:00:05]} d5 {[%emt 0:00:00]} 3. e5 {[%emt 0:00:05]} c5 {[%emt 0:00:00]} 4. c3 {[%emt 0:00:02]} Nc6 {[%emt 0:00:00]} 5. Be3 {[%emt 0:00:01]} Bd7 {[%emt 0:02:28]} 6. Nf3 {[%emt 0:00:56]} Nge7 {[%emt 0:01:08]} 7. Be2 {[%emt 0:02:35]} Nf5 {[%emt 0:08:38]} 8. O-O {[%emt 0:00:57]} Be7 {[%emt 0:01:21]} 9. Na3 {[%emt 0:15:53]} cxd4 {[%emt 0:06:07]} 10. cxd4 {[%emt 0:02:44]} Qb6 {[%emt 0:00:10]} 11. Rb1 {[%emt 0:11:54]} f6 {[%emt 0:02:32]} 12. exf6 {[%emt 0:04:43]} Bxf6 {[%emt 0:02:54]} 13. Nc2 {[%emt 0:04:29]} O-O {[%emt 0:01:36]} 14. Bd3 {[%emt 0:02:53]} Nxe3 15. fxe3 {[%emt 0:01:55]} Rae8 {[%emt 0:05:30]} 16. Kh1 {[%emt 0:09:38]} g6 {[%emt 0:01:15]} 17. e4 {[%emt 0:11:46]} Nxd4 {[%emt 0:01:56]} 18. Ncxd4 {[%emt 0:01:14]} Bxd4 {[%emt 0:01:40]} 19. exd5 {[%emt 0:02:09]} exd5 {[%emt 0:00:15]} 20. Bxg6 {[%emt 0:00:58]} hxg6 {[%emt 0:07:37]} 21. Qxd4 {[%emt 0:00:45]} Qxd4 {[%emt 0:00:06]} 22. Nxd4 {[%emt 0:00:01]} Rxf1+ {[%emt 0:00:17]} 23. Rxf1 {[%emt 0:00:01]} Re4 {[%emt 0:00:07]} 24. Nb3 {[%emt 0:03:50]} Re2 {[%emt 0:00:34]} 25. Nc5 {[%emt 0:01:52]} Bc6 {[%emt 0:00:18]} 26. Kg1 {[%emt 0:03:40]} Rxb2 {[%emt 0:00:50]} 27. Rf2 {[%emt 0:00:11]} Rb1+ {[%emt 0:02:17]} 28. Rf1 {[%emt 0:00:13]} Rxf1+ {[%emt 0:00:05]} 29. Kxf1 {[%emt 0:00:06]} d4 {[%emt 0:03:05]} 30. g3 {[%emt 0:02:14]} Kf7 {[%emt 0:11:35]} 31. Ke2 {[%emt 0:02:57]} Kf6 {[%emt 0:00:16]} 32. Kd3 {[%emt 0:03:41]} Ke5 {[%emt 0:00:19]} 33. Nb3 {[%emt 0:01:17]} Bb5+ {[%emt 0:00:03]} 34. Kd2 {[%emt 0:00:12]} Bc4 {[%emt 0:00:03]} 35. Na5 {[%emt 0:00:34]} Bd5 {[%emt 0:00:05]} 36. h4 {[%emt 0:00:36]} b6 {[%emt 0:00:45]} 37. Nb3 {[%emt 0:00:02]} Bxb3 {[%emt 0:00:05]} 38. axb3 {[%emt 0:00:01]} Kf5 {[%emt 0:00:06]} 39. Kd3 {[%emt 0:00:05]} Kg4 {[%emt 0:00:03]} 40. Kxd4 {[%emt 0:00:00]} Kxg3 {[%emt 0:00:00]} 41. b4 {[%emt 0:00:09]} Kxh4 {[%emt 0:00:09]} 42. b5 {[%emt 0:00:02]} g5 {[%emt 0:00:04]} 43. Kd5 {[%emt 0:00:03]} g4 {[%emt 0:00:09]} 44. Ke6 {[%emt 0:00:02]} g3 {[%emt 0:00:05]} 45. Kf7 {[%emt 0:00:02]} g2 {[%emt 0:00:06]} 46. Kg7 {[%emt 0:00:03]} Kg5 {[%emt 0:00:08]} 47. Kh8 {[%emt 0:00:05]} Kf6 {[%emt 0:00:06]} 48. Kh7 {[%emt 0:00:05]} g1=Q {[%emt 0:00:05]} 49. Kh8 {[%emt 0:00:04]} Qg7# {[%emt 0:00:06]} 0-1

[Event "IIFL Wealth  4th Mumbai Junior U-13"]
[Site "Mumbai"]
[Date "2018.12.31"]
[Round "2"]
[White "Adreeja Sinha"]
[Black "Bagwe Gaurang"]
[Result "0-1"]
[ECO "B76"]
[WhiteElo "1366"]
[BlackElo "1768"]
[Annotator "NA RC"]
[PlyCount "66"]
[EventDate "2018.12.30"]
[EventType "swiss"]
[EventCountry "IND"]
[SourceTitle "playchess.com"]
[Source "ChessBase"]
[SourceQuality "1"]
[TimeControl "40/5400+30:1800+30"]

1. e4 c5 2. Nf3 d6 3. d4 cxd4 4. Nxd4 Nf6 5. Nc3 g6 6. Be3 Bg7 7. f3 O-O 8. Qd2 Nc6 9. O-O-O Nxd4 10. Bxd4 Be6 11. Kb1 Rc8 12. g4 Bc4 13. h4 {[%emt 1:00:59]} Bxf1 14. Rdxf1 Rc4 15. Qd3 Rc6 16. h5 e6 17. Qd2 {[%emt 0:02:00]} Rc4 18. Be3 {[%emt 0:00:30]} Qe7 {[%emt 1:01:00]} 19. Bg5 {[%emt 0:07:59]} Rfc8 {[%emt 0:01:54]} 20. Rd1 Rb4 21. Nd5 Nxd5 22. Bxe7 Rxb2+ 23. Kc1 Nb4 24. Rdf1 Rcxc2+ 25. Qxc2 Rxc2+ 26. Kd1 Rxa2 27. Bg5 Nd3 28. Be3 b5 29. hxg6 fxg6 30. f4 b4 31. f5 exf5 32. gxf5 b3 33. f6 Ra1+ 0-1

[Event "IIFL Wealth  4th Mumbai Junior U-13"]
[Site "Mumbai"]
[Date "2018.12.31"]
[Round "2"]
[White "Shreyas Seshadri Nallore"]
[Black "Bhagyashree Patil"]
[Result "0-1"]
[ECO "C45"]
[WhiteElo "1343"]
[BlackElo "1758"]
[Annotator "NA RC"]
[PlyCount "90"]
[EventDate "2018.12.30"]
[EventType "swiss"]
[EventCountry "IND"]
[SourceTitle "playchess.com"]
[Source "ChessBase"]
[SourceQuality "1"]
[TimeControl "40/5400+30:1800+30"]

1. e4 {[%emt 0:00:00]} e5 {[%emt 0:00:00]} 2. Nf3 {[%emt 0:00:00]} Nc6 {[%emt 0:00:00]} 3. d4 {[%emt 0:00:00]} exd4 {[%emt 0:00:00]} 4. Nxd4 {[%emt 0:00:00]} Bc5 {[%emt 0:12:55]} 5. Be3 {[%emt 0:00:43]} Bb6 {[%emt 0:17:58]} 6. Bc4 {[%emt 0:05:08]} d6 {[%emt 0:02:25]} 7. Nc3 {[%emt 0:06:34]} Nge7 {[%emt 0:10:12]} 8. O-O {[%emt 0:02:33]} O-O {[%emt 0:02:01]} 9. f4 {[%emt 0:03:36]} Na5 {[%emt 0:02:47]} 10. Be2 {[%emt 0:05:16]} f5 {[%emt 0:02:21]} 11. exf5 {[%emt 0:06:36]} Nxf5 {[%emt 0:00:14]} 12. Nxf5 {[%emt 0:00:38]} Bxf5 {[%emt 0:00:20]} 13. Bxb6 {[%emt 0:02:23]} axb6 {[%emt 0:00:18]} 14. Bd3 {[%emt 0:06:21]} Qf6 {[%emt 0:03:26]} 15. Bxf5 {[%emt 0:13:38]} Qxf5 {[%emt 0:00:09]} 16. b3 {[%emt 0:02:20]} Qc5+ {[%emt 0:01:01]} 17. Kh1 {[%emt 0:00:37]} Qxc3 {[%emt 0:00:03]} 18. Qd5+ {[%emt 0:00:31]} Kh8 {[%emt 0:00:48]} 19. Rac1 {[%emt 0:02:54]} Nc6 {[%emt 0:00:39]} 20. a4 {[%emt 0:01:26]} Rae8 {[%emt 0:00:44]} 21. Qh5 {[%emt 0:01:23]} Re6 {[%emt 0:02:18]} 22. f5 {[%emt 0:03:27]} Rh6 {[%emt 0:00:41]} 23. Qg4 {[%emt 0:01:00]} Qd4 {[%emt 0:01:39]} 24. Qe2 {[%emt 0:01:15]} Qe5 {[%emt 0:00:07]} 25. Qxe5 {[%emt 0:00:24]} Nxe5 {[%emt 0:00:02]} 26. h3 {[%emt 0:00:06]} Rhf6 {[%emt 0:00:05]} 27. g4 {[%emt 0:00:09]} g6 {[%emt 0:00:07]} 28. Rf4 {[%emt 0:00:24]} Kg7 {[%emt 0:01:09]} 29. Rcf1 {[%emt 0:00:55]} gxf5 {[%emt 0:00:57]} 30. g5 {[%emt 0:00:27]} R6f7 {[%emt 0:00:46]} 31. h4 {[%emt 0:00:12]} Ng6 {[%emt 0:00:11]} 32. Rc4 {[%emt 0:00:27]} f4 {[%emt 0:00:22]} 33. h5 {[%emt 0:00:04]} Ne5 {[%emt 0:00:03]} 34. Rc3 {[%emt 0:00:23]} f3 {[%emt 0:00:17]} 35. Kh2 {[%emt 0:00:36]} c6 {[%emt 0:00:15]} 36. Kg3 {[%emt 0:00:37]} Rf4 {[%emt 0:00:18]} 37. Kh3 {[%emt 0:00:12]} R8f5 {[%emt 0:00:36]} 38. h6+ {[%emt 0:00:29]} Kg6 {[%emt 0:00:10]} 39. Rd1 {[%emt 0:00:08]} d5 {[%emt 0:00:26]} 40. Rg1 {[%emt 0:00:00]} f2 {[%emt 0:00:00]} 41. Rf1 {[%emt 0:00:24]} Rxg5 {[%emt 0:00:19]} 42. Re3 {[%emt 0:00:06]} Nf3 {[%emt 0:00:59]} 43. Rxf3 {[%emt 0:00:29]} Rxf3+ {[%emt 0:00:02]} 44. Kh2 {[%emt 0:00:02]} Rf4 {[%emt 0:00:06]} 45. Rxf2 {[%emt 0:00:06]} Rh4# {[%emt 0:00:03]} 0-1

[Event "IIFL Wealth  4th Mumbai Junior U-13"]
[Site "Mumbai"]
[Date "2018.12.31"]
[Round "2"]
[White "Tikam Aradhya"]
[Black "Sadbhav Rautela"]
[Result "1/2-1/2"]
[ECO "B22"]
[WhiteElo "1332"]
[BlackElo "1746"]
[Annotator "NA"]
[PlyCount "125"]
[EventDate "2018.12.30"]
[EventType "swiss"]
[EventCountry "IND"]
[SourceTitle "playchess.com"]
[Source "ChessBase"]
[SourceQuality "1"]
[TimeControl "40/5400+30:1800+30"]

1. e4 {[%emt 0:00:00]} c5 {[%emt 0:00:00]} 2. c3 {[%emt 0:00:00]} d5 {[%emt 0:00:00]} 3. exd5 {[%emt 0:00:00]} Nf6 {[%emt 0:00:00]} 4. d4 {[%emt 0:00:00]} cxd4 {[%emt 0:06:42]} 5. cxd4 {[%emt 0:00:14]} Nxd5 {[%emt 0:00:21]} 6. Nf3 {[%emt 0:00:16]} Nc6 {[%emt 0:02:31]} 7. Nc3 {[%emt 0:01:01]} Bg4 {[%emt 0:08:38]} 8. Be2 {[%emt 0:00:16]} e6 {[%emt 0:02:53]} 9. h3 {[%emt 0:01:35]} Bh5 {[%emt 0:00:57]} 10. O-O {[%emt 0:00:51]} Be7 {[%emt 0:05:03]} 11. Ne5 {[%emt 0:02:08]} Bxe2 {[%emt 0:06:20]} 12. Nxe2 {[%emt 0:00:08]} Rc8 {[%emt 0:01:13]} 13. Nxc6 {[%emt 0:04:31]} Rxc6 {[%emt 0:00:18]} 14. Be3 {[%emt 0:00:12]} O-O {[%emt 0:04:41]} 15. Nf4 {[%emt 0:01:42]} Nxf4 {[%emt 0:00:33]} 16. Bxf4 {[%emt 0:00:05]} Bd6 {[%emt 0:11:41]} 17. Be3 {[%emt 0:00:53]} Bb8 {[%emt 0:04:00]} 18. Rc1 {[%emt 0:00:52]} Rd6 {[%emt 0:05:10]} 19. Qf3 {[%emt 0:01:21]} Qd7 {[%emt 0:10:35]} 20. Rfd1 {[%emt 0:02:37]} a6 {[%emt 0:02:45]} 21. Rd2 {[%emt 0:03:29]} Ba7 {[%emt 0:06:50]} 22. Rdc2 {[%emt 0:02:37]} Bb6 {[%emt 0:04:58]} 23. b3 {[%emt 0:06:58]} h6 {[%emt 0:07:42]} 24. Qg3 {[%emt 0:03:58]} Kh7 {[%emt 0:02:12]} 25. Qf3 {[%emt 0:03:33]} Rd5 {[%emt 0:01:36]} 26. Rc4 {[%emt 0:02:32]} Qe7 {[%emt 0:02:14]} 27. Bf4 {[%emt 0:02:52]} Qf6 {[%emt 0:02:02]} 28. Qe4+ {[%emt 0:01:41]} Qg6 {[%emt 0:00:30]} 29. Qxg6+ {[%emt 0:01:23]} Kxg6 {[%emt 0:00:09]} 30. Be3 {[%emt 0:00:46]} Rfd8 {[%emt 0:00:34]} 31. Rb4 {[%emt 0:01:32]} Rb5 {[%emt 0:01:28]} 32. Rcc4 {[%emt 0:02:06]} Rdd5 {[%emt 0:00:22]} 33. a4 {[%emt 0:00:45]} Rxb4 {[%emt 0:00:37]} 34. Rxb4 {[%emt 0:00:04]} Rd6 {[%emt 0:00:38]} 35. Kf1 {[%emt 0:01:22]} a5 {[%emt 0:00:31]} 36. Rb5 {[%emt 0:02:27]} Bxd4 {[%emt 0:00:31]} 37. Bxd4 {[%emt 0:00:16]} Rxd4 {[%emt 0:00:01]} 38. Rxb7 {[%emt 0:00:01]} Rd5 {[%emt 0:01:07]} 39. Ke2 {[%emt 0:01:05]} Kf6 {[%emt 0:00:14]} 40. b4 {[%emt 0:00:00]} axb4 {[%emt 0:00:00]} 41. Rxb4 {[%emt 0:00:20]} Rd7 {[%emt 0:04:54]} 42. a5 {[%emt 0:01:22]} Ra7 {[%emt 0:00:40]} 43. Ra4 {[%emt 0:00:01]} Ke5 {[%emt 0:00:16]} 44. Ke3 {[%emt 0:00:07]} g5 {[%emt 0:06:10]} 45. g4 {[%emt 0:01:00]} f5 {[%emt 0:00:33]} 46. a6 {[%emt 0:00:29]} Kd5 {[%emt 0:07:09]} 47. Ra5+ {[%emt 0:00:28]} Kc4 {[%emt 0:02:45]} 48. gxf5 {[%emt 0:00:31]} exf5 {[%emt 0:00:03]} 49. Rxf5 {[%emt 0:00:20]} Rxa6 {[%emt 0:00:02]} 50. Kf3 {[%emt 0:00:11]} Kd3 {[%emt 0:03:32]} 51. Kg4 {[%emt 0:00:12]} Ra4+ {[%emt 0:00:49]} 52. Kg3 {[%emt 0:00:40]} Ra6 {[%emt 0:03:22]} 53. f3 {[%emt 0:01:38]} Ke3 {[%emt 0:00:42]} 54. Re5+ {[%emt 0:00:48]} Kd4 {[%emt 0:01:13]} 55. Rf5 {[%emt 0:00:56]} Rg6 {[%emt 0:01:26]} 56. Kg4 {[%emt 0:00:34]} Re6 {[%emt 0:01:11]} 57. Rf8 {[%emt 0:00:12]} Ke3 {[%emt 0:00:40]} 58. Rh8 {[%emt 0:01:25]} Rf6 {[%emt 0:01:17]} 59. Re8+ {[%emt 0:00:29]} Kf2 {[%emt 0:00:03]} 60. Rh8 {[%emt 0:00:23]} Kg2 {[%emt 0:03:22]} 61. Kh5 {[%emt 0:00:36]} Rxf3 {[%emt 0:01:11]} 62. Rxh6 {[%emt 0:00:10]} Rxh3+ {[%emt 0:00:24]} 63. Kxg5 {[%emt 0:00:01]} 1/2-1/2

[Event "IIFL Wealth  4th Mumbai Junior U-13"]
[Site "Mumbai"]
[Date "2018.12.31"]
[Round "2"]
[White "Jain, Kushagra"]
[Black "Mayank Chakraborty"]
[Result "1-0"]
[ECO "B23"]
[WhiteElo "1323"]
[BlackElo "1691"]
[Annotator "NA RC"]
[PlyCount "112"]
[EventDate "2018.12.30"]
[EventType "swiss"]
[EventCountry "IND"]
[SourceTitle "playchess.com"]
[Source "ChessBase"]
[SourceQuality "1"]
[TimeControl "40/5400+30:1800+30"]

1. e4 {[%emt 0:03:20]} c5 {[%emt 0:00:00]} 2. Nc3 {[%emt 0:00:12]} d6 {[%emt 0:00:11]} 3. f4 {[%emt 0:00:12]} g6 {[%emt 0:00:15]} 4. Nf3 {[%emt 0:00:19]} Bg7 {[%emt 0:00:12]} 5. Bc4 {[%emt 0:00:30]} Nc6 {[%emt 0:00:21]} 6. O-O {[%emt 0:00:28]} Nf6 {[%emt 0:00:11]} 7. d3 {[%emt 0:00:20]} O-O {[%emt 0:01:10]} 8. Qe1 {[%emt 0:00:34]} Nd4 {[%emt 0:01:16]} 9. Nxd4 {[%emt 0:02:07]} cxd4 {[%emt 0:00:21]} 10. Ne2 {[%emt 0:00:10]} d5 {[%emt 0:00:36]} 11. exd5 {[%emt 0:02:24]} Nxd5 {[%emt 0:00:27]} 12. Qg3 {[%emt 0:02:27]} e6 {[%emt 0:08:51]} 13. Bd2 {[%emt 0:01:50]} b6 {[%emt 0:02:12]} 14. Rae1 {[%emt 0:01:05]} Bb7 {[%emt 0:01:14]} 15. Qh3 {[%emt 0:05:03]} Rc8 {[%emt 0:04:58]} 16. Bb3 {[%emt 0:02:56]} b5 {[%emt 0:05:54]} 17. g4 {[%emt 0:03:24]} a5 {[%emt 0:05:44]} 18. a4 {[%emt 0:01:48]} Bc6 {[%emt 0:03:13]} 19. axb5 {[%emt 0:01:49]} Bxb5 {[%emt 0:00:07]} 20. Rc1 {[%emt 0:00:28]} a4 {[%emt 0:03:28]} 21. Ba2 {[%emt 0:00:12]} Qd6 {[%emt 0:01:15]} 22. Ng3 {[%emt 0:05:51]} Ne3 {[%emt 0:03:45]} 23. Ne4 {[%emt 0:00:53]} Qe7 {[%emt 0:04:07]} 24. Rf3 {[%emt 0:08:52]} Nxc2 {[%emt 0:07:34]} 25. f5 {[%emt 0:00:35]} exf5 {[%emt 0:17:15]} 26. gxf5 {[%emt 0:03:23]} Bd7 {[%emt 0:19:45]} 27. Bh6 {[%emt 0:01:33]} Qe5 {[%emt 0:03:05]} 28. Bxg7 {[%emt 0:02:44]} Kxg7 {[%emt 0:00:30]} 29. f6+ {[%emt 0:00:36]} Qxf6 {[%emt 0:00:01]} 30. Qxh7+ {[%emt 0:00:11]} Kxh7 {[%emt 0:00:19]} 31. Nxf6+ {[%emt 0:00:18]} Kg7 {[%emt 0:00:24]} 32. Nxd7 {[%emt 0:00:21]} Rfe8 {[%emt 0:00:12]} 33. Rxf7+ {[%emt 0:01:35]} Kh6 {[%emt 0:00:03]} 34. Rf2 {[%emt 0:06:31]} Nb4 {[%emt 0:01:45]} 35. Rxc8 {[%emt 0:00:22]} Rxc8 {[%emt 0:00:02]} 36. Bc4 {[%emt 0:00:22]} Re8 {[%emt 0:00:48]} 37. Kf1 {[%emt 0:02:46]} Re3 {[%emt 0:00:30]} 38. Nc5 {[%emt 0:00:26]} Nc6 {[%emt 0:00:21]} 39. Nxa4 {[%emt 0:01:39]} Ne5 {[%emt 0:00:01]} 40. Nc5 {[%emt 0:00:00]} Ng4 {[%emt 0:00:00]} 41. Rg2 {[%emt 0:03:54]} Ne5 {[%emt 0:00:24]} 42. Re2 {[%emt 0:01:02]} Nf3 {[%emt 0:00:54]} 43. Rxe3 {[%emt 0:01:49]} Nxh2+ {[%emt 0:00:09]} 44. Ke2 {[%emt 0:00:23]} dxe3 {[%emt 0:00:08]} 45. Kxe3 {[%emt 0:00:07]} Kg5 {[%emt 0:00:09]} 46. b4 {[%emt 0:00:45]} Nf1+ {[%emt 0:00:07]} 47. Kf2 {[%emt 0:00:31]} Nd2 {[%emt 0:00:07]} 48. Ne4+ {[%emt 0:00:07]} Nxe4+ {[%emt 0:00:08]} 49. dxe4 {[%emt 0:00:07]} Kf4 {[%emt 0:00:06]} 50. Bd5 {[%emt 0:00:25]} g5 {[%emt 0:00:06]} 51. b5 {[%emt 0:00:07]} Ke5 {[%emt 0:00:04]} 52. b6 {[%emt 0:00:11]} Kd6 {[%emt 0:00:03]} 53. b7 {[%emt 0:00:03]} Kc7 {[%emt 0:00:08]} 54. e5 {[%emt 0:00:18]} g4 {[%emt 0:00:04]} 55. e6 {[%emt 0:00:08]} g3+ {[%emt 0:00:07]} 56. Kxg3 {[%emt 0:00:04]} Kd8 1-0

[Event "IIFL Wealth  4th Mumbai Junior U-13"]
[Site "Mumbai"]
[Date "2018.12.31"]
[Round "2"]
[White "Mitank Maru"]
[Black "Shreyas Ghadi"]
[Result "0-1"]
[ECO "D35"]
[WhiteElo "1312"]
[BlackElo "1653"]
[Annotator "NA"]
[PlyCount "152"]
[EventDate "2018.12.30"]
[EventType "swiss"]
[EventCountry "IND"]
[SourceTitle "playchess.com"]
[Source "ChessBase"]
[SourceQuality "1"]
[TimeControl "40/5400+30:1800+30"]

1. c4 {[%emt 0:02:35]} e6 {[%emt 0:00:00]} 2. Nc3 {[%emt 0:00:16]} d5 {[%emt 0:00:00]} 3. d4 {[%emt 0:01:25]} Nf6 {[%emt 0:00:00]} 4. cxd5 {[%emt 0:00:27]} exd5 {[%emt 0:00:00]} 5. Bg5 {[%emt 0:00:24]} Be7 {[%emt 0:00:00]} 6. e3 {[%emt 0:00:57]} O-O {[%emt 0:00:45]} 7. Bd3 {[%emt 0:03:38]} c6 {[%emt 0:00:17]} 8. Nf3 {[%emt 0:01:24]} Nbd7 {[%emt 0:00:54]} 9. Qc2 {[%emt 0:01:40]} h6 {[%emt 0:00:07]} 10. Bh4 {[%emt 0:11:49]} Re8 {[%emt 0:03:06]} 11. O-O {[%emt 0:02:12]} Qc7 {[%emt 0:04:38]} 12. Rac1 {[%emt 0:16:37]} a6 {[%emt 0:00:58]} 13. Bf5 {[%emt 0:08:47]} Nb6 {[%emt 0:03:03]} 14. Bg3 {[%emt 0:11:46]} Bxf5 {[%emt 0:01:23]} 15. Qxf5 {[%emt 0:02:02]} Qd7 {[%emt 0:00:29]} 16. Qd3 {[%emt 0:05:04]} Qe6 {[%emt 0:03:01]} 17. Ne5 {[%emt 0:05:09]} Nfd7 {[%emt 0:05:13]} 18. f4 {[%emt 0:03:17]} Nxe5 {[%emt 0:01:26]} 19. dxe5 {[%emt 0:00:50]} f5 {[%emt 0:01:07]} 20. Ne2 {[%emt 0:04:28]} c5 {[%emt 0:00:01]} 21. a3 {[%emt 0:02:44]} Rac8 {[%emt 0:01:16]} 22. Rfd1 {[%emt 0:01:38]} Red8 {[%emt 0:00:50]} 23. Be1 {[%emt 0:02:19]} Nc4 {[%emt 0:06:19]} 24. Bc3 {[%emt 0:02:40]} b5 {[%emt 0:01:20]} 25. Ra1 {[%emt 0:02:13]} Qf7 {[%emt 0:04:55]} 26. b3 {[%emt 0:01:37]} Nxa3 {[%emt 0:00:29]} 27. Ba5 {[%emt 0:02:48]} c4 {[%emt 0:01:39]} 28. Qd2 {[%emt 0:01:38]} Re8 {[%emt 0:00:37]} 29. b4 {[%emt 0:00:25]} c3 {[%emt 0:00:59]} 30. Nxc3 {[%emt 0:00:20]} Nc4 {[%emt 0:00:20]} 31. Qxd5 {[%emt 0:00:43]} Nxe3 {[%emt 0:00:17]} 32. Qxf7+ {[%emt 0:00:12]} Kxf7 {[%emt 0:00:01]} 33. Rdc1 {[%emt 0:00:28]} Rc4 {[%emt 0:00:17]} 34. Kf2 {[%emt 0:01:11]} Ng4+ {[%emt 0:00:58]} 35. Kg3 {[%emt 0:00:43]} g5 {[%emt 0:01:28]} 36. Nd5 {[%emt 0:00:42]} gxf4+ {[%emt 0:00:32]} 37. Nxf4 {[%emt 0:00:17]} Nxe5 {[%emt 0:01:10]} 38. Rxc4 {[%emt 0:00:38]} Nxc4 {[%emt 0:00:02]} 39. Nd5 {[%emt 0:00:23]} Bd6+ {[%emt 0:00:27]} 40. Kf2 {[%emt 0:00:00]} Nd2 {[%emt 0:00:00]} 41. Rd1 {[%emt 0:01:33]} Ne4+ {[%emt 0:01:47]} 42. Kf3 {[%emt 0:01:08]} Rc8 {[%emt 0:07:14]} 43. Bb6 {[%emt 0:06:29]} Rc2 {[%emt 0:01:15]} 44. Be3 {[%emt 0:01:53]} Ng5+ {[%emt 0:06:01]} 45. Bxg5 {[%emt 0:00:16]} hxg5 {[%emt 0:00:01]} 46. h3 {[%emt 0:01:14]} Rc4 {[%emt 0:02:21]} 47. Ne3 {[%emt 0:01:13]} Rf4+ {[%emt 0:00:04]} 48. Ke2 {[%emt 0:00:18]} Bxb4 {[%emt 0:00:02]} 49. g3 {[%emt 0:02:41]} Re4 {[%emt 0:00:01]} 50. Kf3 {[%emt 0:02:00]} Ke6 {[%emt 0:01:13]} 51. Rd8 {[%emt 0:02:22]} Re5 {[%emt 0:01:12]} 52. Re8+ {[%emt 0:02:00]} Kf6 {[%emt 0:00:10]} 53. Ra8 {[%emt 0:00:52]} a5 {[%emt 0:02:02]} 54. g4 {[%emt 0:01:23]} f4 {[%emt 0:01:06]} 55. Nf5 {[%emt 0:01:00]} a4 {[%emt 0:00:38]} 56. Rd8 {[%emt 0:00:43]} a3 {[%emt 0:03:01]} 57. Rd1 {[%emt 0:00:39]} Re1 {[%emt 0:00:16]} 58. Rxe1 {[%emt 0:01:48]} Bxe1 {[%emt 0:00:04]} 59. Nd4 {[%emt 0:00:03]} a2 {[%emt 0:00:10]} 60. Nc2 {[%emt 0:00:16]} Bc3 {[%emt 0:00:23]} 61. Ke4 {[%emt 0:00:38]} b4 {[%emt 0:01:14]} 62. Kd3 {[%emt 0:01:26]} a1=Q {[%emt 0:01:31]} 63. Nxa1 {[%emt 0:00:18]} Bxa1 {[%emt 0:00:01]} 64. Kc4 {[%emt 0:00:01]} Bc3 {[%emt 0:00:14]} 65. Kd3 {[%emt 0:00:05]} Ke5 {[%emt 0:00:08]} 66. Kc2 {[%emt 0:00:06]} f3 {[%emt 0:00:11]} 67. Kd3 {[%emt 0:00:05]} Kf4 {[%emt 0:00:06]} 68. Kc2 {[%emt 0:00:21]} f2 {[%emt 0:00:04]} 69. Kb3 {[%emt 0:00:09]} f1=Q {[%emt 0:00:56]} 70. Ka4 {[%emt 0:00:12]} Qc4 {[%emt 0:00:32]} 71. Ka5 {[%emt 0:00:09]} b3+ {[%emt 0:00:08]} 72. Kb6 {[%emt 0:00:24]} b2 {[%emt 0:00:07]} 73. Ka7 {[%emt 0:00:11]} Qb5 {[%emt 0:00:28]} 74. Ka8 {[%emt 0:00:16]} b1=B 75. Ka7 {[%emt 0:00:13]} Bd4+ {[%emt 0:00:16]} 76. Ka8 {[%emt 0:00:06]} Be4# {[%emt 0:00:04]} 0-1

[Event "IIFL Wealth  4th Mumbai Junior U-13"]
[Site "Mumbai"]
[Date "2018.12.31"]
[Round "2"]
[White "Wahba, David George"]
[Black "Makwana Devam"]
[Result "0-1"]
[ECO "B83"]
[WhiteElo "1295"]
[BlackElo "1617"]
[Annotator "NA RC"]
[PlyCount "70"]
[EventDate "2018.12.30"]
[EventType "swiss"]
[EventCountry "IND"]
[SourceTitle "playchess.com"]
[Source "ChessBase"]
[SourceQuality "1"]
[TimeControl "40/5400+30:1800+30"]

1. e4 c5 2. Nf3 d6 3. d4 cxd4 4. Nxd4 Nf6 5. Nc3 Nc6 6. Be2 e6 7. O-O Be7 8. Be3 a6 9. Qd2 Qc7 10. Rad1 O-O 11. Rfe1 b5 12. a3 Bb7 13. f3 Rac8 14. b3 Nxd4 15. Bxd4 e5 16. Bxe5 dxe5 17. Nb1 Qc5+ 18. Kh1 Bxe4 19. b4 Qa7 20. Bxb5 Rxc2 21. Qe3 Qxe3 22. Rxe3 axb5 23. fxe4 Ng4 24. Rg3 Nf2+ 25. Kg1 Nxd1 26. Rd3 Rc1 27. Rb3 Rd8 28. h3 Nb2+ 29. Kf2 Rxb1 30. Ke3 Nc4+ 31. Kf2 Rxb3 32. a4 Rd2+ 33. Kg1 Bh4 34. a5 Rd1+ 35. Kh2 Bg3# {Kg1} 0-1

[Event "IIFL Wealth  4th Mumbai Junior U-13"]
[Site "Mumbai"]
[Date "2018.12.31"]
[Round "2"]
[White "Srivatsan Karthikeyan"]
[Black "Kadam Rishi R"]
[Result "0-1"]
[ECO "C54"]
[WhiteElo "1288"]
[BlackElo "1604"]
[Annotator "NA RC"]
[PlyCount "92"]
[EventDate "2018.12.30"]
[EventType "swiss"]
[EventCountry "IND"]
[SourceTitle "playchess.com"]
[Source "ChessBase"]
[SourceQuality "1"]
[TimeControl "40/5400+30:1800+30"]

1. e4 {[%emt 0:00:00]} e5 {[%emt 0:00:00]} 2. Nf3 {[%emt 0:00:34]} Nc6 {[%emt 0:00:00]} 3. Bc4 {[%emt 0:00:06]} Bc5 {[%emt 0:00:02]} 4. c3 {[%emt 0:01:37]} Nf6 {[%emt 0:00:53]} 5. d4 {[%emt 0:00:18]} exd4 {[%emt 0:00:13]} 6. cxd4 {[%emt 0:00:10]} Bb4+ {[%emt 0:00:16]} 7. Bd2 {[%emt 0:00:12]} Bxd2+ {[%emt 0:00:22]} 8. Nbxd2 {[%emt 0:00:08]} d5 {[%emt 0:00:12]} 9. exd5 {[%emt 0:00:06]} Nxd5 {[%emt 0:00:05]} 10. Qb3 {[%emt 0:00:31]} Nce7 {[%emt 0:03:56]} 11. O-O {[%emt 0:02:19]} O-O {[%emt 0:00:44]} 12. Rfe1 {[%emt 0:01:31]} c6 {[%emt 0:03:04]} 13. Ne5 {[%emt 0:04:18]} Qb6 {[%emt 0:14:10]} 14. Qxb6 {[%emt 0:03:31]} axb6 {[%emt 0:00:40]} 15. Bb3 {[%emt 0:00:17]} Be6 {[%emt 0:00:46]} 16. Ne4 {[%emt 0:01:46]} h6 {[%emt 0:03:00]} 17. Nc3 {[%emt 0:05:18]} Rfd8 {[%emt 0:03:25]} 18. a4 {[%emt 0:09:26]} Nc7 {[%emt 0:14:39]} 19. Bxe6 {[%emt 0:01:24]} Nxe6 {[%emt 0:00:05]} 20. Nf3 {[%emt 0:00:08]} Nf5 {[%emt 0:00:10]} 21. d5 {[%emt 0:00:34]} cxd5 22. Re5 {[%emt 0:00:58]} Ne7 {[%emt 0:06:28]} 23. Rd1 {[%emt 0:00:08]} Kf8 {[%emt 0:02:23]} 24. Nxd5 {[%emt 0:01:12]} Rxa4 {[%emt 0:02:25]} 25. Nc3 {[%emt 0:01:47]} Rxd1+ {[%emt 0:00:29]} 26. Nxd1 {[%emt 0:00:12]} Ra1 {[%emt 0:00:54]} 27. Re1 {[%emt 0:00:08]} Nd5 {[%emt 0:02:27]} 28. Nc3 {[%emt 0:00:24]} Rxe1+ {[%emt 0:00:20]} 29. Nxe1 {[%emt 0:00:07]} Nxc3 {[%emt 0:00:21]} 30. bxc3 {[%emt 0:00:07]} Nf4 {[%emt 0:00:20]} 31. c4 {[%emt 0:00:44]} Ke7 {[%emt 0:00:29]} 32. Nc2 {[%emt 0:00:15]} Kd6 {[%emt 0:00:19]} 33. Ne3 {[%emt 0:00:42]} Kc5 {[%emt 0:00:19]} 34. Kf1 {[%emt 0:00:41]} Nd3 {[%emt 0:00:17]} 35. Nf5 {[%emt 0:00:34]} Ne5 {[%emt 0:06:18]} 36. Nxg7 {[%emt 0:02:16]} Nxc4 {[%emt 0:02:00]} 37. Ke2 {[%emt 0:01:23]} b5 {[%emt 0:00:33]} 38. f4 {[%emt 0:01:02]} b4 {[%emt 0:00:40]} 39. g4 {[%emt 0:00:23]} b3 {[%emt 0:00:40]} 40. Kd3 {[%emt 0:00:00]} b2 {[%emt 0:00:00]} 41. Kc2 {[%emt 0:00:57]} Kb4 {[%emt 0:00:29]} 42. Nf5 {[%emt 0:00:50]} Ka3 {[%emt 0:00:33]} 43. Ne3 {[%emt 0:00:48]} Nxe3+ {[%emt 0:00:09]} 44. Kb1 {[%emt 0:00:06]} Kb3 {[%emt 0:00:05]} 45. g5 {[%emt 0:00:07]} Nf1 {[%emt 0:00:06]} 46. gxh6 {[%emt 0:00:07]} Nd2# {[%emt 0:00:05]} 0-1